bitfinex/quotes_BTCUSD_20250218
["timestamp","ask_amount","ask_price","bid_price","bid_amount"]
[1739902434495,0.1595054,94242.0,94237.0,0.023]
[1739902434694,0.159169,94240.0,94237.0,0.023]
[1739902434941,0.15917,94239.0,94237.0,0.023]
[1739902435141,0.1595054,94242.0,94239.0,0.023]
[1739902435295,0.159166,94241.0,94239.0,0.023]
[1739902435495,0.0003404,94242.0,94239.0,0.023]
[1739902435699,0.159166,94241.0,94239.0,0.023]
[1739902435984,0.0003404,94242.0,94239.0,0.023]
[1739902436158,0.1595044,94242.0,94239.0,0.023]
[1739902436387,0.159168,94240.0,94239.0,0.023]
[1739902436594,0.159168,94240.0,94239.0,0.04358828]
[1739902436804,0.159168,94240.0,94239.0,0.04558828]
[1739902437001,0.159168,94240.0,94239.0,0.04358828]
[1739902437445,0.159168,94240.0,94239.0,0.003]
[1739902437446,0.85756033,94240.0,94239.0,0.003]
[1739902437653,0.94556884,94240.0,94239.0,0.003]
[1739902437856,0.309198,94222.0,94221.0,0.00061219]
[1739902438057,0.7880189,94222.0,94221.0,0.00061219]
[1739902438260,0.8346189,94222.0,94221.0,0.00061219]
[1739902438674,0.85353891,94222.0,94221.0,0.00061219]
[1739902439639,0.87492444,94222.0,94221.0,0.00061219]
[1739902440008,0.80693891,94222.0,94221.0,0.00061219]
[1739902441328,0.81093891,94222.0,94221.0,0.00061219]
[1739902442981,0.7943066,94222.0,94221.0,0.00061219]
[1739902443405,0.7903066,94222.0,94221.0,0.00061219]
[1739902444010,0.7943066,94222.0,94221.0,0.00061219]
[1739902444299,0.7903066,94222.0,94221.0,0.00061219]
[1739902444797,0.7963066,94222.0,94221.0,0.00061219]
[1739902445161,0.7903066,94222.0,94221.0,0.00061219]
[1739902445367,0.7963066,94222.0,94221.0,1.9e-07]
[1739902445915,0.7903066,94222.0,94221.0,1.9e-07]
[1739902446124,0.309201,94220.0,94219.0,5.9e-07]
[1739902446636,0.15228806,94220.0,94213.0,0.00013069]
[1739902446893,0.309212,94214.0,94213.0,6.9e-07]
[1739902447078,0.9717227,94214.0,94213.0,6.9e-07]
[1739902447279,0.159233,94201.0,94197.0,0.0001702]
[1739902447481,0.159233,94201.0,94161.0,7e-05]
[1739902447482,0.159274,94177.0,94161.0,7e-05]
[1739902447686,0.15,94174.0,94172.0,4e-07]
[1739902447891,0.16060861,94173.0,94172.0,4e-07]
[1739902448096,0.16287505,94173.0,94172.0,4e-07]
[1739902448302,0.309299,94162.0,94161.0,7e-05]
[1739902448505,0.7884232,94162.0,94161.0,7e-05]
[1739902448716,0.84142459,94162.0,94161.0,7e-05]
[1739902448941,0.53212559,94162.0,94161.0,0.00020244]
[1739902449155,0.69142459,94162.0,94161.0,0.00020244]
[1739902449379,0.66183983,94162.0,94161.0,0.00020244]
[1739902450028,0.67848398,94162.0,94161.0,0.00020244]
[1739902450431,0.159316,94152.0,94151.0,0.0002]
[1739902450573,0.159316,94152.0,94151.0,0.000332]
[1739902450914,0.16156766,94152.0,94151.0,0.000332]
[1739902451300,0.1782117,94152.0,94151.0,0.000332]
[1739902453005,0.16156766,94152.0,94151.0,0.000332]
[1739902454230,0.79204611,94152.0,94151.0,0.000332]
[1739902454447,0.79071836,94152.0,94151.0,0.000332]
[1739902454669,0.64271836,94152.0,94151.0,0.000332]
[1739902454845,0.64854719,94152.0,94151.0,0.000332]
[1739902455050,0.17139649,94152.0,94151.0,0.000332]
[1739902455548,0.16939649,94152.0,94151.0,0.000332]
[1739902456804,0.17039649,94152.0,94151.0,0.000332]
[1739902457008,0.16939649,94152.0,94151.0,0.000332]
[1739902457360,0.66619427,94152.0,94151.0,0.000332]
[1739902457564,0.66519427,94152.0,94151.0,0.000332]
[1739902457769,0.18604077,94152.0,94151.0,0.000332]
[1739902457968,0.18604077,94152.0,94151.0,0.001332]
[1739902458171,0.18604077,94152.0,94151.0,0.000332]
[1739902458379,0.18604077,94152.0,94151.0,0.0005022]
[1739902458579,0.18604077,94152.0,94151.0,0.0015022]
[1739902459904,0.17821194,94152.0,94151.0,0.0015022]
[1739902460444,0.17821194,94152.0,94151.0,0.0005022]
[1739902460651,0.17821194,94152.0,94151.0,0.0015022]
[1739902461188,0.17821194,94152.0,94151.0,0.0005022]
[1739902461330,0.17821194,94152.0,94151.0,0.0015022]
[1739902461541,0.17821194,94152.0,94151.0,0.0005022]
[1739902462006,0.17821194,94152.0,94151.0,0.0015022]
[1739902462205,0.17821194,94152.0,94151.0,0.0005022]
[1739902462406,0.00225166,94152.0,94151.0,0.19052744]
[1739902462639,0.212365,94178.0,94152.0,0.023]
[1739902462835,0.0022572,94172.0,94168.0,0.10776686]
[1739902463032,0.0022572,94172.0,94169.0,0.03377669]
[1739902463323,0.159265,94183.0,94174.0,0.159279]
[1739902463522,0.0457,94205.0,94178.0,0.08476686]
[1739902463844,0.0457,94205.0,94179.0,0.023]
[1739902464045,0.212318,94198.0,94188.0,0.08476686]
[1739902464246,0.159269,94180.0,94179.0,0.023]
[1739902464410,0.00226216,94180.0,94179.0,0.023]
[1739902464613,0.159252,94190.0,94179.0,0.19304769]
[1739902464811,0.02299474,94205.0,94189.0,0.023]
[1739902465019,0.0121409,94205.0,94200.0,0.08476686]
[1739902465220,0.0121409,94205.0,94201.0,0.023]
[1739902465618,0.004,94205.0,94204.0,0.182228]
[1739902465867,0.004,94205.0,94204.0,0.023]
[1739902466040,0.07044,94205.0,94204.0,0.182228]
[1739902466239,0.004,94205.0,94204.0,0.182228]
[1739902466582,0.004,94205.0,94204.0,0.3724172]
[1739902467012,0.004,94205.0,94204.0,0.2131892]
[1739902467348,0.01663614,94206.0,94205.0,0.023]
[1739902467547,0.01663614,94206.0,94205.0,0.12550365]
[1739902468438,0.01663614,94206.0,94205.0,0.12450365]
[1739902469068,0.01663614,94206.0,94200.0,0.08489886]
[1739902469274,0.159229,94204.0,94200.0,0.08489886]
[1739902469476,0.159233,94201.0,94200.0,0.08489886]
[1739902470278,0.16150772,94201.0,94200.0,0.08489886]
[1739902470482,0.16150772,94201.0,94200.0,0.10789886]
[1739902470910,0.01763614,94206.0,94201.0,0.173]
[1739902471109,0.01763614,94206.0,94205.0,0.332227]
[1739902471319,0.01763614,94206.0,94205.0,0.43473065]
[1739902471758,0.01663614,94206.0,94205.0,0.43473065]
[1739902471964,0.01663614,94206.0,94205.0,0.43873065]
[1739902471965,0.01763614,94206.0,94205.0,0.43873065]
[1739902472171,0.01763614,94206.0,94205.0,0.43473065]
[1739902472378,0.17586114,94206.0,94205.0,0.10789768]
[1739902472597,0.1317534,94208.0,94201.0,0.005]
[1739902472772,0.0003406,94222.0,94202.0,0.023]
[1739902472969,0.159227,94206.0,94201.0,0.023]
[1739902473215,0.0003406,94222.0,94203.0,0.023]
[1739902473416,0.159225,94207.0,94201.0,0.023]
[1739902473967,0.159226,94206.0,94201.0,0.023]
[1739902474333,0.212273,94218.0,94201.0,0.023]
[1739902474535,0.0003406,94222.0,94202.0,0.01078989]
[1739902474748,0.159225,94206.0,94202.0,0.01078989]
[1739902474953,0.159223,94208.0,94202.0,0.01078989]
[1739902475388,0.212292,94210.0,94202.0,0.01078989]
[1739902475607,0.160225,94206.0,94205.0,0.03]
[1739902475819,0.160225,94206.0,94205.0,0.04486887]
[1739902476190,0.001,94206.0,94205.0,0.04486887]
[1739902476708,0.160225,94206.0,94205.0,0.04486887]
[1739902477134,0.001,94206.0,94205.0,0.04486887]
[1739902477570,0.159223,94207.0,94206.0,0.023]
[1739902477779,0.159223,94207.0,94206.0,0.03757677]
[1739902478609,0.1614112,94207.0,94206.0,0.03757677]
[1739902479339,0.1614112,94207.0,94206.0,0.04057677]
[1739902479540,0.0021882,94207.0,94206.0,0.04057677]
[1739902480857,0.0021882,94207.0,94206.0,0.03757677]
[1739902481151,0.0021882,94207.0,94206.0,0.04057677]
[1739902481356,0.0021882,94207.0,94206.0,0.03757677]
[1739902481718,0.0021882,94207.0,94206.0,0.04057677]
[1739902482153,0.1614112,94207.0,94206.0,0.04057677]
[1739902482360,0.1614112,94207.0,94206.0,0.03757677]
[1739902482563,0.0021882,94207.0,94206.0,0.03757677]
[1739902482769,0.0021882,94207.0,94206.0,0.04157677]
[1739902483501,0.1614112,94207.0,94206.0,0.04157677]
[1739902483937,0.1614112,94207.0,94206.0,0.03757677]
[1739902484349,0.00218722,94207.0,94206.0,0.03957677]
[1739902484503,0.16141022,94207.0,94206.0,0.03957677]
[1739902484947,0.16141022,94207.0,94206.0,0.03757677]
[1739902485146,0.00218722,94207.0,94206.0,0.03757677]
[1739902485349,0.00218722,94207.0,94206.0,0.03957677]
[1739902486192,0.15922,94209.0,94206.0,0.03957677]
[1739902486451,0.00209593,94207.0,94206.0,0.03957677]
[1739902486656,0.159215,94212.0,94206.0,0.03957677]
[1739902486865,0.00209593,94207.0,94206.0,0.03957677]
[1739902487287,0.159221,94209.0,94206.0,0.03757677]
[1739902487462,0.159221,94209.0,94206.0,0.026]
[1739902487619,0.00209628,94208.0,94201.0,0.023]
[1739902488173,0.22892399,94211.0,94207.0,0.023]
[1739902488372,0.159219,94210.0,94201.0,0.023]
[1739902488581,0.22892399,94211.0,94207.0,0.023]
[1739902488786,0.159219,94210.0,94207.0,0.023]
[1739902489170,0.159221,94209.0,94207.0,0.023]
[1739902489361,0.159221,94209.0,94208.0,0.02889302]
[1739902489958,0.159221,94209.0,94208.0,0.023]
[1739902491071,0.01663299,94211.0,94200.0,0.08506916]
[1739902491275,0.01663299,94211.0,94208.0,0.002]
[1739902491490,0.159218,94210.0,94208.0,0.002]
[1739902491697,0.01663299,94211.0,94208.0,0.002]
[1739902491698,0.15922,94209.0,94208.0,0.002]
[1739902492145,0.15922,94209.0,94201.0,0.023]
[1739902492389,0.159221,94209.0,94208.0,0.026]
[1739902492634,0.17585099,94211.0,94209.0,0.023]
[1739902492797,0.212233,94237.0,94209.0,0.023]
[1739902492967,0.212233,94237.0,94208.0,0.003]
[1739902493170,0.212233,94237.0,94209.0,0.023]
[1739902493376,0.212266,94221.0,94209.0,0.023]
[1739902493581,0.15921,94216.0,94209.0,0.023]
[1739902493806,0.00210044,94220.0,94210.0,0.12451986]
[1739902493996,0.00209879,94215.0,94210.0,0.08476686]
[1739902494207,0.1595386,94222.0,94213.0,0.159213]
[1739902494510,0.00210077,94221.0,94212.0,0.212285]
[1739902494755,0.00210077,94221.0,94213.0,0.06118485]
[1739902494954,0.00210077,94221.0,94213.0,0.159213]
[1739902495358,0.00210077,94221.0,94213.0,0.17044852]
[1739902495601,0.00210077,94221.0,94213.0,0.01123552]
[1739902495909,0.00210077,94221.0,94214.0,0.12550365]
[1739902496117,0.0003406,94222.0,94221.0,0.023]
[1739902496248,0.0003406,94222.0,94221.0,0.05377047]
[1739902496455,0.00244219,94222.0,94221.0,0.05377047]
[1739902496655,0.00244219,94222.0,94221.0,0.22120599]
[1739902497051,0.0003406,94222.0,94221.0,0.06200599]
[1739902497255,0.00243757,94222.0,94221.0,0.22120599]
[1739902497453,0.0003406,94222.0,94221.0,0.22120599]
[1739902497660,0.0003406,94222.0,94221.0,0.06500599]
[1739902497914,0.0003406,94222.0,94221.0,0.06200599]
[1739902497915,0.00243757,94222.0,94221.0,0.06200599]
[1739902498098,0.00243757,94222.0,94221.0,0.22720599]
[1739902498321,0.0013406,94222.0,94221.0,0.22720599]
[1739902498821,0.0013406,94222.0,94221.0,0.06800599]
[1739902499038,0.0013406,94222.0,94221.0,0.22720599]
[1739902499157,0.00343757,94222.0,94221.0,0.22720599]
[1739902499362,0.0013406,94222.0,94221.0,0.32970964]
[1739902499803,0.0013406,94222.0,94221.0,0.47970964]
[1739902500321,0.0013406,94222.0,94221.0,0.47370964]
[1739902500539,0.0003406,94222.0,94221.0,0.47370964]
[1739902500766,0.0013406,94222.0,94221.0,0.48070964]
[1739902501152,0.0013406,94222.0,94221.0,0.48867028]
[1739902501563,0.0013406,94222.0,94221.0,0.5018384]
[1739902502761,0.0013406,94222.0,94221.0,0.3426384]
[1739902502896,0.0013406,94222.0,94221.0,0.5018384]
[1739902504335,0.0013406,94222.0,94221.0,0.49387776]
[1739902504956,0.0013406,94222.0,94221.0,0.33467776]
[1739902505298,0.0003406,94222.0,94221.0,0.31450964]
[1739902505456,0.0003406,94222.0,94221.0,0.32050964]
[1739902506444,0.1595386,94222.0,94221.0,0.04500599]
[1739902506657,0.161639,94222.0,94221.0,0.01423552]
[1739902506861,0.161639,94222.0,94221.0,0.00823552]
[1739902507057,0.161639,94222.0,94221.0,0.01323552]
[1739902507501,0.161639,94222.0,94221.0,0.00823552]
[1739902507870,0.161639,94222.0,94221.0,0.01123552]
[1739902508068,0.161639,94222.0,94221.0,0.00823552]
[1739902508487,0.161639,94222.0,94221.0,0.01023552]
[1739902508695,0.161639,94222.0,94221.0,0.002]
[1739902509868,0.161539,94222.0,94221.0,0.002]
[1739902510064,0.159215,94212.0,94211.0,0.0001703]
[1739902510428,0.16132255,94212.0,94211.0,0.0001703]
[1739902511571,0.16264933,94212.0,94211.0,0.0001703]
[1739902511772,0.16132255,94212.0,94211.0,0.0001703]
[1739902512963,0.00210755,94212.0,94211.0,0.0001703]
[1739902513119,0.00210079,94212.0,94211.0,0.0001703]
[1739902513320,0.159215,94212.0,94211.0,0.0001703]
[1739902513827,0.16122646,94212.0,94211.0,0.0001703]
[1739902514991,0.16255335,94212.0,94211.0,0.0001703]
[1739902515193,0.16122646,94212.0,94211.0,0.0001703]
[1739902518104,0.16322646,94212.0,94211.0,0.0001703]
[1739902518304,0.16122646,94212.0,94211.0,0.0001703]
[1739902519788,0.16322646,94212.0,94211.0,0.0001703]
[1739902520736,0.16122646,94212.0,94211.0,0.0001703]
[1739902520943,0.22294253,94212.0,94211.0,0.0001703]
[1739902521137,0.16222646,94212.0,94211.0,0.0001703]
[1739902521341,0.16122646,94212.0,94211.0,0.0001703]
[1739902521716,0.16322646,94212.0,94211.0,0.0001703]
[1739902522950,0.16122646,94212.0,94211.0,0.0001703]
[1739902523332,0.16222646,94212.0,94211.0,0.0001703]
[1739902523487,0.16122646,94212.0,94211.0,0.0001703]
[1739902523895,0.16222646,94212.0,94211.0,0.0001703]
[1739902525055,0.16322646,94212.0,94211.0,0.0001703]
[1739902526304,0.16122646,94212.0,94211.0,0.0001703]
[1739902527093,0.16222646,94212.0,94211.0,0.0001703]
[1739902527507,0.16122646,94212.0,94211.0,0.0001703]
[1739902527716,0.16322646,94212.0,94211.0,0.0001703]
[1739902528139,0.16122646,94212.0,94211.0,0.0001703]
[1739902529459,0.0993571,94200.0,94197.0,0.023]
[1739902529671,0.09948957,94200.0,94197.0,0.0182246]
[1739902529910,0.16124912,94199.0,94197.0,0.0182246]
[1739902530109,0.16124912,94199.0,94181.0,0.0831]
[1739902530110,0.00201112,94199.0,94181.0,0.0831]
[1739902530315,0.00201112,94199.0,94175.0,0.159276]
[1739902530465,0.00201112,94199.0,94158.0,0.08476686]
[1739902530466,0.00132712,94198.0,94197.0,0.002]
[1739902530674,0.16124465,94198.0,94197.0,0.002]
[1739902530873,0.00200565,94198.0,94169.0,0.159287]
[1739902531098,0.00132719,94197.0,94170.0,0.05353419]
[1739902531305,0.00200499,94196.0,94169.0,0.023]
[1739902531510,0.00132721,94195.0,94168.0,0.08476686]
[1739902531743,0.03459077,94194.0,94159.0,0.0763]
[1739902531918,0.212374,94174.0,94160.0,0.159303]
[1739902532239,0.00332066,94173.0,94157.0,0.031926]
[1739902532482,0.00199331,94173.0,94157.0,0.031926]
[1739902532683,0.212377,94172.0,94157.0,0.031926]
[1739902532894,0.159297,94164.0,94157.0,0.031926]
[1739902533113,0.00198679,94163.0,94157.0,0.031926]
[1739902533316,0.159306,94158.0,94157.0,0.031926]
[1739902533518,0.16129114,94158.0,94157.0,0.031926]
[1739902533747,0.16129114,94158.0,94151.0,0.0003702]
[1739902533948,0.159316,94152.0,94151.0,0.0003702]
[1739902534149,0.16130378,94152.0,94151.0,0.0003702]
[1739902535972,0.15771493,94152.0,94151.0,0.0003702]
[1739902536313,0.15904265,94152.0,94151.0,0.0023702]
[1739902536527,0.15771493,94152.0,94151.0,0.0023702]
[1739902537083,0.15771493,94152.0,94151.0,0.0003702]
[1739902537317,0.63686963,94152.0,94151.0,0.0013702]
[1739902538146,0.48114248,94152.0,94130.0,0.08476686]
[1739902538323,0.48114248,94152.0,94129.0,4.72401192]
[1739902538324,0.238025,94147.0,94129.0,4.72401192]
[1739902538528,0.24000585,94147.0,94129.0,4.72401192]
[1739902539426,0.39000585,94147.0,94129.0,4.72401192]
[1739902540527,0.159354,94130.0,94129.0,4.72401192]
[1739902541638,0.15,94147.0,94129.0,4.72401192]
[1739902541972,0.02084464,94145.0,94130.0,0.023]
[1739902542175,0.02084464,94145.0,94129.0,4.72401192]
[1739902542350,0.159354,94130.0,94129.0,4.58551921]
[1739902542570,0.2096063,94130.0,94129.0,4.55832917]
[1739902542730,0.6888698,94130.0,94129.0,4.55732917]
[1739902542935,0.84083944,94130.0,94129.0,4.55732917]
[1739902543364,0.84083944,94130.0,94129.0,3.81186659]
[1739902543572,1.44672534,94130.0,94129.0,2.51648565]
[1739902543770,0.53400595,94130.0,94129.0,2.51648565]
[1739902545015,0.55355708,94130.0,94129.0,2.51648565]
[1739902545287,1.14344438,94130.0,94129.0,2.51648565]
[1739902545500,1.14344438,94130.0,94129.0,2.51665595]
[1739902545645,1.13944438,94130.0,94129.0,2.51665595]
[1739902545854,1.24894803,94130.0,94129.0,2.51665595]
[1739902546369,1.24194803,94130.0,94129.0,2.51665595]
[1739902546571,1.24894803,94130.0,94129.0,2.51665595]
[1739902546937,1.24194803,94130.0,94129.0,2.51665595]
[1739902548172,1.24894803,94130.0,94129.0,2.51665595]
[1739902548370,1.24194803,94130.0,94129.0,2.51665595]
[1739902548775,1.24894803,94130.0,94129.0,2.51665595]
[1739902549005,1.24194803,94130.0,94129.0,2.51665595]
[1739902549531,1.24894803,94130.0,94129.0,2.51665595]
[1739902549809,1.38763466,94130.0,94129.0,2.51665595]
[1739902550061,1.39463466,94130.0,94129.0,2.51665595]
[1739902551296,1.38763466,94130.0,94129.0,2.51665595]
[1739902551614,1.39463466,94130.0,94129.0,2.51665595]
[1739902551813,1.38763466,94130.0,94129.0,2.51665595]
[1739902552117,0.69924371,94130.0,94129.0,2.51665595]
[1739902552314,0.70624371,94130.0,94129.0,2.51665595]
[1739902552496,0.69924371,94130.0,94129.0,2.51665595]
[1739902552747,0.70624371,94130.0,94129.0,2.51665595]
[1739902553171,0.69924371,94130.0,94129.0,2.51665595]
[1739902553393,0.80174736,94130.0,94129.0,2.51665595]
[1739902553798,0.69924371,94130.0,94129.0,2.51665595]
[1739902554457,0.46695478,94130.0,94129.0,2.51665595]
[1739902554810,0.45995478,94130.0,94129.0,2.51665595]
[1739902555221,0.46695478,94130.0,94129.0,2.51665595]
[1739902555419,0.45995478,94130.0,94129.0,2.51665595]
[1739902555736,0.46695478,94130.0,94129.0,2.51665595]
[1739902556285,0.56245843,94130.0,94129.0,2.51665595]
[1739902556411,0.56945843,94130.0,94129.0,2.51665595]
[1739902557534,0.56245843,94130.0,94129.0,2.51665595]
[1739902557967,0.56945843,94130.0,94129.0,2.51665595]
[1739902558132,0.56245843,94130.0,94129.0,2.51665595]
[1739902558342,0.56279883,94130.0,94129.0,2.51665595]
[1739902558510,0.56979883,94130.0,94129.0,2.51665595]
[1739902558707,0.4171122,94130.0,94129.0,2.51665595]
[1739902559133,0.02889153,94130.0,94129.0,2.51665595]
[1739902559366,0.02377246,94130.0,94129.0,2.51665595]
[1739902560765,0.03077246,94130.0,94129.0,2.51665595]
[1739902560970,0.02377246,94130.0,94129.0,2.51665595]
[1739902561173,0.18077246,94130.0,94129.0,2.51665595]
[1739902561373,0.28327611,94130.0,94129.0,2.51665595]
[1739902561692,0.27627611,94130.0,94129.0,2.51665595]
[1739902561918,0.28327611,94130.0,94129.0,2.51665595]
[1739902562240,0.27627611,94130.0,94129.0,2.51665595]
[1739902562461,0.28327611,94130.0,94129.0,2.51665595]
[1739902563608,0.18077246,94130.0,94129.0,2.51665595]
[1739902563815,0.17377246,94130.0,94129.0,2.51665595]
[1739902564020,0.76667806,94130.0,94129.0,2.51665595]
[1739902564400,0.75967806,94130.0,94129.0,2.51665595]
[1739902564610,0.76667806,94130.0,94129.0,2.51665595]
[1739902564815,0.86918171,94130.0,94129.0,2.51665595]
[1739902564972,0.86218171,94130.0,94129.0,2.51665595]
[1739902565179,0.86918171,94130.0,94129.0,2.51665595]
[1739902565605,0.86218171,94130.0,94129.0,2.51665595]
[1739902567011,0.86918171,94130.0,94129.0,2.51665595]
[1739902567215,0.86218171,94130.0,94129.0,2.51665595]
[1739902567587,0.86918171,94130.0,94129.0,2.51665595]
[1739902567793,0.86218171,94130.0,94129.0,2.51665595]
[1739902568158,0.86918171,94130.0,94129.0,2.51665595]
[1739902568418,0.86218171,94130.0,94129.0,2.41729885]
[1739902568974,0.86918171,94130.0,94129.0,2.41729885]
[1739902569964,0.86218171,94130.0,94129.0,2.41729885]
[1739902570429,0.86918171,94130.0,94129.0,2.41729885]
[1739902570657,0.86218171,94130.0,94129.0,2.41729885]
[1739902570892,0.86918171,94130.0,94129.0,2.41729885]
[1739902571128,0.75967806,94130.0,94129.0,2.41729885]
[1739902571591,0.76667806,94130.0,94129.0,2.41729885]
[1739902571823,0.75967806,94130.0,94129.0,2.41729885]
[1739902573232,0.15922133,94130.0,94129.0,2.41729885]
[1739902573463,0.15222133,94130.0,94129.0,2.41729885]
[1739902573708,0.15922133,94130.0,94129.0,2.41729885]
[1739902573925,0.26162005,94130.0,94129.0,2.41729885]
[1739902574413,0.84752285,94130.0,94129.0,2.41729885]
[1739902575228,0.86884945,94130.0,94129.0,2.41729885]
[1739902575510,0.89584945,94130.0,94129.0,2.41729885]
[1739902576092,0.88184945,94130.0,94129.0,2.41729885]
[1739902576294,0.7593458,94130.0,94129.0,2.41729885]
[1739902576637,0.7663458,94130.0,94129.0,2.41729885]
[1739902576838,0.7863458,94130.0,94129.0,2.41729885]
[1739902577264,0.7793458,94130.0,94129.0,2.41729885]
[1739902577686,0.7863458,94130.0,94129.0,2.41729885]
[1739902577932,0.88884945,94130.0,94129.0,2.41729885]
[1739902578341,0.88184945,94130.0,94129.0,2.41729885]
[1739902579420,1.02753608,94130.0,94129.0,2.41729885]
[1739902579867,1.03453608,94130.0,94129.0,2.41729885]
[1739902580316,1.02753608,94130.0,94129.0,2.41729885]
[1739902580545,0.88884945,94130.0,94129.0,2.41729885]
[1739902580785,1.04108634,94130.0,94129.0,2.41729885]
[1739902581036,1.04793168,94130.0,94129.0,2.41729885]
[1739902581514,0.91842803,94130.0,94129.0,2.41729885]
[1739902581759,1.07111466,94130.0,94129.0,2.41729885]
[1739902582457,1.09111466,94130.0,94129.0,2.41729885]
[1739902582903,1.08411466,94130.0,94129.0,2.41729885]
[1739902583110,1.08411466,94130.0,94129.0,0.51023985]
[1739902583315,3.64151466,94130.0,94129.0,0.27063592]
[1739902583516,3.69001466,94130.0,94129.0,0.27063592]
[1739902583715,3.71035289,94130.0,94129.0,0.1908369]
[1739902583914,3.74479641,94130.0,94129.0,0.1908369]
[1739902584316,3.73779641,94130.0,94129.0,0.1908369]
[1739902584667,3.71735289,94130.0,94129.0,0.1908369]
[1739902586021,3.71035289,94130.0,94129.0,0.1908369]
[1739902586585,3.71735289,94130.0,94129.0,0.1908369]
[1739902586750,3.71035289,94130.0,94129.0,0.1908369]
[1739902586952,3.71735289,94130.0,94129.0,0.1908369]
[1739902587149,3.71035289,94130.0,94129.0,0.1908369]
[1739902587582,3.71735289,94130.0,94129.0,0.1908369]
[1739902587799,3.71035289,94130.0,94129.0,0.1908369]
[1739902588189,3.73779641,94130.0,94129.0,0.1908369]
[1739902588399,3.71035289,94130.0,94129.0,0.1908369]
[1739902588837,3.73779641,94130.0,94129.0,0.16325499]
[1739902589198,3.77399943,94130.0,94129.0,0.14595761]
[1739902589376,3.76699943,94130.0,94129.0,0.14595761]
[1739902589578,3.6020676,94130.0,94129.0,0.14595761]
[1739902589778,3.61021435,94130.0,94129.0,0.14595761]
[1739902590591,3.55968473,94130.0,94129.0,0.14595761]
[1739902591329,1.15808775,94130.0,94129.0,0.11516968]
[1739902591509,6.35043097,94130.0,94129.0,0.11516968]
[1739902592590,6.30298745,94130.0,94129.0,0.11516968]
[1739902592718,6.42998745,94130.0,94129.0,0.11516968]
[1739902592919,6.27298962,94130.0,94129.0,0.11516968]
[1739902593125,5.31318962,94130.0,94129.0,0.11516968]
[1739902593335,1.30073225,94130.0,94129.0,0.11516968]
[1739902593569,1.08513225,94130.0,94129.0,0.11516968]
[1739902594173,0.90088962,94130.0,94129.0,0.11516968]
[1739902594638,0.90788962,94130.0,94129.0,0.11516968]
[1739902595186,1.05788962,94130.0,94129.0,0.11516968]
[1739902595587,0.90788962,94130.0,94129.0,0.11516968]
[1739902595834,0.90088962,94130.0,94129.0,0.11516968]
[1739902596091,1.05788962,94130.0,94129.0,0.11516968]
[1739902596296,0.32876395,94130.0,94129.0,0.11516968]
[1739902596729,0.48576395,94130.0,94129.0,0.11516968]
[1739902596903,0.47876395,94130.0,94129.0,0.11516968]
[1739902597352,0.33576395,94130.0,94129.0,0.19766968]
[1739902597693,0.02372332,94130.0,94129.0,0.19766968]
[1739902598110,0.02188664,94130.0,94129.0,0.19766968]
[1739902598314,0.02361097,94130.0,94129.0,0.19766968]
[1739902599514,0.03061097,94130.0,94129.0,0.24746968]
[1739902599709,0.00906473,94130.0,94129.0,0.31374173]
[1739902599910,0.15931,94156.0,94130.0,0.023]
[1739902600107,0.23312994,94157.0,94156.0,0.20786686]
[1739902600918,0.07701575,94157.0,94156.0,0.20786686]
[1739902601342,0.15943935,94158.0,94156.0,0.20786686]
[1739902601742,0.159308,94157.0,94156.0,0.20786686]
[1739902601940,0.309308,94157.0,94156.0,0.20786686]
[1739902602398,0.311308,94157.0,94156.0,0.20786686]
[1739902602572,0.788449,94157.0,94156.0,0.20786686]
[1739902602998,0.791449,94157.0,94156.0,0.20786686]
[1739902603245,0.788449,94157.0,94156.0,0.20786686]
[1739902603653,0.790449,94157.0,94156.0,0.20786686]
[1739902604271,0.481141,94157.0,94156.0,0.20786686]
[1739902604475,0.481141,94157.0,94156.0,0.22865355]
[1739902604682,0.002,94157.0,94156.0,0.22865355]
[1739902604888,0.002,94157.0,94156.0,0.20786686]
[1739902604889,0.161308,94157.0,94156.0,0.20786686]
[1739902605005,0.002,94157.0,94156.0,0.20786686]
[1739902605413,0.00374389,94157.0,94156.0,0.20786686]
[1739902605847,0.00574389,94157.0,94156.0,0.20786686]
[1739902606455,0.16505189,94157.0,94156.0,0.20786686]
[1739902607089,0.16539229,94157.0,94156.0,0.20786686]
[1739902607286,0.00608429,94157.0,94156.0,0.20786686]
[1739902607742,0.16539229,94157.0,94156.0,0.20786686]
[1739902607939,0.00608429,94157.0,94156.0,0.20786686]
[1739902608919,0.00208429,94157.0,94156.0,0.22865355]
[1739902609121,0.00208429,94157.0,94156.0,0.25165355]
[1739902609122,0.00134332,94157.0,94156.0,0.25165355]
[1739902609330,0.02138759,94175.0,94160.0,0.0489]
[1739902609529,0.212318,94198.0,94175.0,0.023]
[1739902609733,0.00047215,94200.0,94186.0,0.08276686]
[1739902609930,0.159257,94187.0,94186.0,0.08276686]
[1739902610362,0.16084811,94187.0,94186.0,0.08176686]
[1739902610924,0.159277,94175.0,94174.0,0.16716686]
[1739902611330,0.00159196,94175.0,94174.0,0.16716686]
[1739902611654,0.02164182,94188.0,94174.0,0.16716686]
[1739902611856,0.159271,94179.0,94175.0,0.01671669]
[1739902612104,0.00159458,94187.0,94174.0,0.16716686]
[1739902612410,0.309261,94185.0,94184.0,0.08476686]
[1739902612644,0.7882517,94185.0,94184.0,0.08476686]
[1739902613435,0.6382517,94185.0,94184.0,0.08476686]
[1739902613908,0.6382517,94185.0,94184.0,0.08576686]
[1739902614101,0.6382517,94185.0,94184.0,0.09434355]
[1739902614299,0.6382517,94185.0,94184.0,0.08576686]
[1739902615832,0.6382517,94185.0,94184.0,0.08476686]
[1739902616143,0.6392517,94185.0,94184.0,0.08476686]
[1739902616292,0.6382517,94185.0,94184.0,0.08476686]
[1739902616496,0.6382517,94185.0,94184.0,0.08576686]
[1739902616902,0.16085492,94185.0,94184.0,0.08476686]
[1739902617309,0.16185492,94185.0,94184.0,0.08476686]
[1739902618044,0.16185492,94185.0,94184.0,0.09643615]
[1739902618372,0.16085492,94185.0,94184.0,0.09643615]
[1739902618786,0.16285492,94185.0,94184.0,0.09643615]
[1739902618990,0.16085492,94185.0,94184.0,0.09643615]
[1739902619393,0.16185492,94185.0,94184.0,0.09643615]
[1739902619608,0.16085492,94185.0,94184.0,0.08476686]
[1739902619808,0.16119532,94185.0,94184.0,0.08476686]
[1739902620005,0.16319532,94185.0,94184.0,0.08476686]
[1739902620241,0.00193432,94185.0,94184.0,0.08476686]
[1739902620392,0.16119532,94185.0,94184.0,0.09643615]
[1739902620597,0.16119532,94185.0,94184.0,0.08476686]
[1739902620842,0.00193432,94185.0,94184.0,0.08476686]
[1739902621219,0.00193432,94185.0,94184.0,0.13176686]
[1739902621439,0.0003404,94185.0,94184.0,0.13176686]